bitfinex-derivatives/quotes_ETHF0:USTF0_20250606
["timestamp","ask_amount","ask_price","bid_price","bid_amount"]
[1749187367830,2.01763381,2455.3,2455.2,5.119]
[1749187368133,0.81417,2455.3,2455.2,5.119]
[1749187368327,4.02805948,2455.4,2455.2,5.93318]
[1749187368536,0.81417,2455.3,2455.2,5.9332]
[1749187368737,0.81417,2455.3,2455.2,5.119]
[1749187368937,0.81417,2455.3,2455.2,5.9332]
[1749187369140,0.81417,2455.3,2455.2,5.119]
[1749187369327,2.02072068,2455.3,2455.2,5.119]
[1749187370931,2.02072068,2455.3,2455.2,5.19033351]
[1749187373048,2.02072068,2455.3,2455.2,6.00453351]
[1749187373247,1.20655068,2455.3,2455.2,6.00453351]
[1749187373951,3.21390948,2455.4,2455.3,0.81417]
[1749187374245,4.42259796,2455.4,2455.3,5.108]
[1749187374541,5.23673796,2455.4,2455.3,5.108]
[1749187378348,5.23673796,2455.4,2455.2,0.07133351]
[1749187378349,0.81417,2455.3,2455.2,0.07133351]
[1749187378548,3.04815848,2455.3,2455.2,5.17933351]
[1749187383950,5.36585848,2455.3,2455.2,5.17933351]
[1749187384157,5.36585848,2455.3,2455.2,0.07133351]
[1749187384849,10.36585848,2455.3,2455.2,0.07133351]
[1749187385452,5.36585848,2455.3,2455.2,0.07133351]
[1749187385757,5.36648536,2455.3,2455.2,0.07133351]
[1749187387156,10.36648536,2455.3,2455.2,0.07133351]
[1749187388058,5.36648536,2455.3,2455.2,0.07133351]
[1749187391256,2.02348536,2455.3,2455.2,0.07133351]
[1749187393357,3.31938536,2455.3,2455.2,0.07133351]
[1749187393565,9.54069536,2455.3,2454.6,5.109]
[1749187393759,4.02217,2454.7,2454.6,5.109]
[1749187393963,5.23148536,2454.7,2454.6,5.109]
[1749187394266,5.23148536,2454.7,2454.3,0.983]
[1749187394267,0.81447,2454.4,2454.3,0.983]
[1749187394465,4.02227,2454.4,2454.3,6.092]
[1749187395165,3.2078,2454.4,2454.3,6.092]
[1749187396864,3.2078,2454.4,2454.3,6.9065]
[1749187397465,4.02227,2454.4,2454.3,0.983]
[1749187397661,4.02227,2454.4,2454.3,6.092]
[1749187397965,5.23125719,2454.4,2454.3,6.092]
[1749187398363,4.02227,2454.4,2454.3,6.092]
[1749187399763,3.2078,2454.4,2454.3,6.9065]
[1749187399960,3.2078,2454.7,2454.5,0.8144]
[1749187400165,4.02218,2454.7,2454.5,0.8144]
[1749187400565,4.02218,2454.7,2454.4,0.81445]
[1749187400762,4.02218,2454.7,2454.5,0.81442]
[1749187401567,4.02218,2454.7,2454.4,2.10205]
[1749187401859,4.02218,2454.7,2454.5,0.81443]
[1749187402066,4.02218,2454.7,2454.5,2.10203]
[1749187402666,4.02218,2454.7,2454.6,0.8144]
[1749187403167,4.02218,2454.7,2454.5,2.10202]
[1749187404361,4.02219,2454.7,2454.5,2.10202]
[1749187404868,0.8144,2454.6,2454.5,2.10202]
[1749187405067,4.02218,2454.7,2454.5,2.10202]
[1749187405269,4.0222,2454.7,2454.5,2.10202]
[1749187405469,4.0222,2454.7,2454.3,6.16333351]
[1749187405470,3.2078,2454.7,2454.3,1.05433351]
[1749187405671,0.81445,2454.5,2454.4,5.104]
[1749187405866,3.2078,2454.7,2454.5,0.81443]
[1749187406066,0.81441,2454.6,2454.4,0.81444]
[1749187406267,0.81441,2454.6,2454.5,5.104]
[1749187406571,0.81447,2454.4,2454.3,1.05433351]
[1749187406768,4.02227,2454.4,2454.3,6.15833351]
[1749187407571,3.2078,2454.4,2454.3,6.97283351]
[1749187408170,4.02227,2454.4,2454.3,6.15833351]
[1749187408771,4.02227,2454.4,2454.3,1.05433351]
[1749187409276,4.02227,2454.4,2454.3,6.15833351]
[1749187409474,5.23066795,2454.4,2454.3,0.07133351]
[1749187409977,5.23066795,2454.4,2454.3,5.17533351]
[1749187414579,5.23059701,2454.4,2454.3,5.17533351]
[1749187418977,4.4161979,2454.4,2454.3,5.17533351]
[1749187419280,0.81442,2454.6,2454.4,0.81446]
[1749187419481,1.20847532,2454.5,2454.4,1.0055]
[1749187419683,1.20847532,2454.5,2454.4,1.81997]
[1749187419877,0.81447,2454.4,2454.3,0.07133351]
[1749187420082,0.81446,2454.5,2454.3,5.99083351]
[1749187420977,5.23137457,2454.4,2454.3,5.17633351]
[1749187421477,5.23137457,2454.4,2454.3,0.07133351]
[1749187422478,0.81457,2454.1,2454.0,0.0883]
[1749187422674,5.23147457,2454.1,2454.0,0.0883]
[1749187423984,0.8146,2454.0,2453.9,5.105]
[1749187424182,2.02370457,2454.0,2453.9,5.105]
[1749187425983,0.81465,2453.9,2453.7,30.5587]
[1749187426181,1.20910457,2454.0,2453.7,30.5587]
[1749187426182,0.82072948,2454.0,2453.8,0.9686]
[1749187426385,1.20932886,2453.9,2453.8,0.9686]
[1749187426683,2.02395886,2453.9,2453.8,0.9686]
[1749187429485,0.81467,2453.8,2453.7,29.744]
[1749187429686,5.23179886,2453.8,2453.7,29.744]
[1749187430083,4.41712886,2453.8,2453.7,30.5587]
[1749187430381,3.2078,2453.8,2453.7,30.5587]
[1749187430984,3.2078,2453.8,2453.7,29.744]
[1749187431592,3.2078,2453.8,2453.7,30.5587]
[1749187431795,4.02247,2453.8,2453.7,24.639]
[1749187432092,5.24696475,2453.8,2453.7,29.744]
[1749187433694,5.24696475,2453.8,2453.7,24.639]
[1749187433895,5.24696475,2453.8,2453.7,29.744]
[1749187434690,0.81473,2453.6,2453.5,0.3975]
[1749187435093,1.22343824,2453.6,2453.5,0.3091]
[1749187435789,2.03816824,2453.6,2453.5,1.2555]
[1749187436190,2.03816824,2453.6,2453.5,0.3091]
[1749187437093,1.22343824,2453.6,2453.5,0.3091]
[1749187437394,2.03816824,2453.6,2453.5,0.3091]
[1749187440295,1.22343824,2453.6,2453.5,0.3091]
[1749187440503,1.22343824,2453.6,2453.5,3.43757]
[1749187440696,2.03816824,2453.6,2453.5,1.2622]
[1749187442403,2.03816824,2453.6,2453.5,6.3602]
[1749187443608,2.03816824,2453.6,2453.5,5.4071]
[1749187444102,1.22343824,2453.6,2453.5,5.4071]
[1749187444504,3.2078,2453.8,2453.5,5.4071]
[1749187444705,2.03546584,2453.7,2453.5,5.4071]
[1749187445004,0.81473,2453.7,2453.5,5.47843351]
[1749187445198,0.8147,2453.7,2453.5,0.38043351]
[1749187445403,0.8147,2453.7,2453.6,5.099]
[1749187445600,2.03557329,2453.7,2453.6,5.099]
[1749187446704,1.22087329,2453.7,2453.6,5.91373]
[1749187447003,3.2078,2453.8,2453.7,0.8147]
[1749187447307,0.00610948,2454.0,2453.9,0.81463]
[1749187447501,1.2271681,2454.0,2453.9,0.81463]
[1749187448406,0.00610948,2454.0,2453.9,0.81463]
[1749187452606,0.00610948,2454.0,2453.9,5.91263]
[1749187453599,0.00610948,2454.0,2453.9,10.91263]
[1749187453804,0.00610948,2454.0,2453.9,14.12043]
[1749187454004,0.00610948,2454.0,2453.9,5.91263]
[1749187457114,0.00610948,2454.0,2453.9,10.91263]
[1749187458011,4.2404,2454.6,2454.5,0.81443]
[1749187458212,3.2078,2454.9,2454.8,0.81434]
[1749187458514,0.81437,2454.8,2454.6,1.8427]
[1749187458713,1.80967,2454.8,2454.6,1.8427]
[1749187458917,0.9953,2454.8,2454.7,0.81437]
[1749187459104,2.21479278,2454.8,2454.7,0.81437]
[1749187459304,0.9953,2454.8,2454.7,0.81437]
[1749187459509,0.9953,2454.8,2454.6,1.84269]
[1749187459909,1.80965,2454.8,2454.6,1.84269]
[1749187460118,0.81437,2454.7,2454.6,1.0283]
[1749187460722,0.8144,2454.6,2454.5,0.00610948]
[1749187460918,5.3104,2454.6,2454.5,0.00610948]
[1749187461614,6.52988278,2454.6,2454.5,0.00610948]
[1749187462818,6.52988278,2454.6,2453.7,0.3094]
[1749187463014,0.81533,2451.8,2451.7,5.66976759]
[1749187463214,0.81533,2451.8,2451.0,23.77830538]
[1749187463215,12.91839906,2451.8,2450.6,1.3207]
[1749187463418,3.2078,2450.7,2450.6,1.3207]
[1749187463620,3.2078,2450.7,2449.8,5.497]
[1749187463824,3.2078,2450.2,2449.9,1.3033]
[1749187464329,3.2078,2450.2,2450.1,4.0747004]
[1749187464918,3.2078,2450.2,2450.1,5.3780004]
[1749187465114,0.00610948,2450.5,2450.1,10.3780004]
[1749187465322,3.21390948,2450.5,2450.4,4.0747004]
[1749187465623,3.21390948,2450.5,2450.4,9.5747004]
[1749187465825,0.00610948,2450.5,2450.4,9.5747004]
[1749187466118,0.00610948,2450.5,2450.4,4.0747004]
[1749187466324,3.21390948,2450.5,2450.4,4.0747004]
[1749187466523,0.00610948,2450.5,2450.4,4.0747004]
[1749187466924,0.00610948,2450.5,2450.4,9.5747004]
[1749187467721,0.00610948,2450.5,2450.4,4.0747004]
[1749187467924,0.00610948,2450.5,2450.4,9.5757004]
[1749187468721,0.00610948,2450.5,2450.4,16.7150004]
[1749187468928,3.2078,2451.1,2450.7,0.81568]
[1749187469122,3.2078,2451.1,2450.8,6.8245]
[1749187469322,3.2078,2451.1,2451.0,4.0747004]
[1749187469821,3.2078,2451.1,2451.0,5.4518004]
[1749187470227,4.02336,2451.1,2451.0,5.4518004]
[1749187471122,4.02336,2451.1,2451.0,1.3771]
[1749187471523,3.2078,2451.1,2451.0,1.3771]
[1749187471725,3.2078,2451.1,2451.0,5.4518004]
[1749187472625,4.02336,2451.1,2451.0,5.4518004]
[1749187472825,3.2078,2451.1,2451.0,5.4518004]
[1749187474030,4.02336,2451.1,2451.0,5.4518004]
[1749187474531,4.02336,2451.1,2451.0,5.52313391]
[1749187475033,3.2078,2451.1,2451.0,5.52313391]
[1749187475734,4.02336,2451.1,2451.0,5.52313391]
[1749187476629,4.02336,2451.1,2451.0,1.44843351]
[1749187478435,3.2078,2451.1,2451.0,5.52313391]
[1749187478632,3.2078,2451.1,2451.0,6.33873391]
[1749187478834,3.2078,2451.1,2451.0,5.52313391]
[1749187479037,3.2078,2451.1,2451.0,6.33873391]
[1749187480839,3.2078,2451.1,2451.0,5.52313391]
[1749187481540,4.02336,2451.1,2451.0,5.52313391]
[1749187482344,3.2078,2451.1,2451.0,5.52313391]
[1749187482840,3.2078,2451.1,2451.0,6.33873391]
[1749187483044,3.2078,2451.1,2451.0,5.52313391]
[1749187483243,4.02336,2451.1,2451.0,5.52313391]
[1749187483545,4.02336,2451.1,2451.0,11.02713391]
[1749187484545,4.02336,2451.1,2451.0,5.52313391]
[1749187484745,4.02336,2451.1,2451.0,11.02713391]
[1749187485044,3.2078,2451.1,2451.0,11.84273391]
[1749187486038,3.2078,2451.1,2451.0,6.33873391]
[1749187486239,3.2078,2451.1,2451.0,11.84273391]
[1749187487344,4.02336,2451.1,2451.0,11.84273391]
[1749187487848,3.2078,2451.1,2451.0,11.84273391]
[1749187488046,3.2078,2451.1,2451.0,6.33873391]
[1749187488350,3.2078,2451.1,2451.0,11.84273391]
[1749187489645,4.60225908,2451.1,2451.0,11.84273391]
[1749187492649,7.84762081,2451.1,2451.0,11.84273391]
[1749187492844,4.60225908,2451.1,2451.0,11.84273391]
[1749187493650,1.39445908,2451.1,2451.0,11.84273391]
[1749187494260,1.39445908,2451.1,2451.0,17.22653705]
[1749187494447,0.00612232,2451.3,2451.2,0.81553]
[1749187494647,0.00612232,2451.3,2451.2,4.8902304]
[1749187495057,0.00612232,2451.3,2451.2,6.2775304]
[1749187500257,3.2078,2451.7,2451.6,0.8154]
[1749187500454,0.81535,2451.8,2451.6,9.4977004]
[1749187500753,0.81535,2451.8,2451.7,1.2852]
[1749187501856,0.81533,2451.8,2451.7,1.2852]
[1749187505962,0.81533,2451.8,2451.7,1.35653351]
[1749187506459,2.09078268,2451.8,2451.7,1.35653351]
[1749187510758,2.09078268,2451.8,2451.7,0.07133351]
[1749187511354,7.09078268,2451.8,2451.7,0.07133351]
[1749187511555,8.31381268,2451.8,2451.3,5.423]
[1749187511753,4.02327,2451.4,2451.3,5.423]
[1749187511962,5.29872268,2451.4,2451.3,5.423]
[1749187512857,1.27545268,2451.4,2451.3,10.3132004]
[1749187513662,4.48325268,2451.4,2451.3,5.423]
[1749187514263,5.29873268,2451.4,2451.1,0.81555]
[1749187514463,1.27545268,2451.3,2451.2,5.423]
[1749187514865,2.09095268,2451.3,2451.2,5.423]
[1749187515259,2.09095268,2451.3,2451.0,2.09718]
[1749187515460,3.2078,2451.4,2451.2,5.423]
[1749187515661,2.08172031,2451.3,2451.2,5.423]
[1749187516159,1.26622031,2451.3,2451.2,5.423]
[1749187518963,1.26622031,2451.3,2451.0,1.2816]
[1749187519169,2.08177031,2451.2,2451.1,5.423]
[1749187519568,1.26622031,2451.2,2451.1,5.423]
[1749187519766,1.26622031,2451.3,2451.1,5.423]
[1749187519967,1.26622031,2451.2,2451.1,7.54857]
[1749187520172,3.2078,2451.4,2451.1,6.733]
[1749187520474,1.26655188,2451.3,2451.2,0.81551]
[1749187521171,1.26655188,2451.3,2451.2,4.96154391]
[1749187521472,1.26666002,2451.3,2451.2,0.07133351]
[1749187521662,2.08216002,2451.3,2451.2,0.07133351]
[1749187522874,1.26666002,2451.3,2451.2,0.07133351]
[1749187523375,1.26666002,2451.3,2451.2,0.88686351]
[1749187527373,2.08216002,2451.3,2451.2,0.07133351]
[1749187527677,1.26666002,2451.3,2451.2,0.88686351]
[1749187527878,1.26666002,2451.3,2451.2,4.96156391]
[1749187528271,3.2078,2451.7,2451.6,0.8154]
[1749187528574,4.46759487,2451.7,2451.6,10.1641004]
[1749187529273,5.28296487,2451.7,2451.6,9.3487004]
[1749187529475,4.46759487,2451.7,2451.6,9.3487004]
[1749187529671,4.46759487,2451.7,2451.3,2.2597]
[1749187529672,4.46759487,2451.7,2451.2,0.07133351]
[1749187529971,6.45316173,2451.4,2450.1,3.2078]
[1749187530177,3.2078,2451.0,2450.6,4.0747004]
[1749187530370,2.07544487,2450.9,2450.7,1.26]
[1749187530571,3.2078,2451.0,2450.7,1.26]
[1749187530572,1.25979487,2450.8,2450.7,1.26]
[1749187530779,4.2534,2451.3,2450.9,4.0747004]
[1749187530971,2.07426705,2451.2,2451.0,1.26]
[1749187531271,2.07427705,2451.1,2451.0,1.26]
[1749187531977,0.8156,2451.0,2450.9,5.274]
[1749187532177,4.46650705,2451.0,2450.9,5.274]
[1749187532378,5.28212705,2451.0,2450.9,5.274]
[1749187534082,5.28212705,2451.0,2450.9,5.275]
[1749187534277,5.28212705,2451.0,2450.9,5.34633351]
[1749187534476,4.02342,2451.0,2450.9,5.34633351]
[1749187534676,5.29997809,2451.0,2450.9,5.34633351]
[1749187535177,5.29995809,2451.0,2450.9,5.34633351]
[1749187539278,5.29995809,2451.0,2450.9,6.34203351]
[1749187541580,5.29995809,2451.0,2450.9,0.07133351]
[1749187541784,5.29995809,2451.0,2450.9,5.34633351]
[1749187544780,1.27655809,2451.0,2450.9,9.42103391]
[1749187544979,1.27655809,2451.0,2450.9,10.23666391]
[1749187545579,3.2078,2451.3,2450.9,9.42103391]
[1749187545779,2.09230402,2451.2,2451.0,1.2729]
[1749187546080,0.81553,2451.2,2451.0,1.2729]
[1749187546281,0.81553,2451.2,2451.1,4.0747004]
[1749187546586,2.09232372,2451.2,2451.1,4.0747004]
[1749187546788,0.81557,2451.1,2451.0,1.2729]
[1749187546981,2.09236372,2451.1,2451.0,6.5479]
[1749187547183,2.09236372,2451.1,2451.0,1.2729]
[1749187547484,2.09236372,2451.1,2451.0,6.5479]
[1749187548786,2.09236372,2451.1,2451.0,1.2729]
[1749187548985,2.09236372,2451.1,2451.0,6.5479]
[1749187549989,0.81567,2450.8,2450.7,1.0253]
[1749187550286,3.2078,2450.8,2450.7,7.116]
[1749187550487,3.2078,2450.8,2450.7,11.1907004]
[1749187550683,3.2078,2451.4,2451.0,0.81559]
[1749187550888,0.81554,2451.2,2451.1,5.275]
[1749187551087,2.09316136,2451.2,2451.1,5.275]
[1749187551285,2.09316136,2451.2,2451.1,9.3497004]
[1749187551485,1.27762136,2451.2,2451.1,9.3497004]
[1749187551883,0.81553,2451.2,2451.1,10.6092004]
[1749187552086,2.09315136,2451.2,2451.1,10.6092004]
[1749187552289,2.09315136,2451.2,2451.1,6.5345]
[1749187552490,2.09315136,2451.2,2451.1,5.275]
[1749187553790,2.09315136,2451.2,2451.0,0.07133351]
[1749187553791,0.81557,2451.1,2451.0,0.07133351]
[1749187554089,5.30099136,2451.1,2451.0,5.34633351]
[1749187554891,5.30099136,2451.1,2451.0,5.30733351]
[1749187557491,2.09319136,2451.1,2451.0,5.30733351]
[1749187557691,5.30099136,2451.1,2451.0,5.30733351]
[1749187557891,5.30099136,2451.1,2451.0,0.07133351]
[1749187558091,5.30099136,2451.1,2451.0,1.40413351]
[1749187560708,4.48542136,2451.1,2451.0,6.29443391]
[1749187560901,4.48542136,2451.1,2451.0,5.47883391]
[1749187561302,4.48542136,2451.1,2451.0,6.29443391]
[1749187562512,5.30099136,2451.1,2451.0,5.47883391]
[1749187563014,4.48542136,2451.1,2451.0,5.47883391]
[1749187563913,5.30099136,2451.1,2451.0,5.47883391]
[1749187565409,4.48542136,2451.1,2451.0,6.29443391]
[1749187565611,5.30099136,2451.1,2451.0,5.47883391]
[1749187565909,5.30341824,2451.1,2451.0,5.47883391]
[1749187566611,4.48784824,2451.1,2451.0,5.47883391]
[1749187567217,5.30341824,2451.1,2451.0,5.47883391]
[1749187567910,4.48784824,2451.1,2451.0,6.29443391]
[1749187568312,4.48784824,2451.1,2451.0,5.47883391]
[1749187568512,5.30341824,2451.1,2451.0,5.47883391]
[1749187571416,4.48784824,2451.1,2451.0,5.47883391]
[1749187571711,5.30341824,2451.1,2451.0,5.47883391]
[1749187579213,5.30341824,2451.1,2451.0,1.40413351]
[1749187579417,5.30341824,2451.1,2451.0,0.07133351]
[1749187583021,5.30341824,2451.1,2451.0,4.14603391]
[1749187584016,5.30341824,2451.1,2451.0,5.30733351]
[1749187585116,5.30482654,2451.1,2451.0,5.30733351]
[1749187586521,5.30482654,2451.1,2451.0,0.07133351]
[1749187592817,0.81573,2450.6,2450.5,2.32e-06]
[1749187593118,0.81603,2449.7,2449.6,1.3066]
[1749187593425,4.02383,2449.7,2449.6,1.3066]
[1749187593626,5.30528654,2449.7,2449.6,5.3813004]
[1749187593822,5.30528654,2449.7,2449.6,1.3066]
[1749187596117,4.48925654,2449.7,2449.0,3.2078]
[1749187596318,4.02403,2449.1,2448.5,11.6525]
[1749187596526,3.2078,2449.1,2448.5,12.02789451]
[1749187596731,3.2078,2449.5,2449.0,4.0747004]
[1749187597029,0.81613,2449.4,2449.1,8.3729]
[1749187597230,0.3917,2449.4,2449.3,4.0747004]
[1749187597417,0.81613,2449.4,2449.3,9.2147004]
[1749187597622,0.81613,2449.4,2449.3,5.14]
[1749187598425,0.81618,2449.3,2449.1,3.2329]
[1749187598626,0.81618,2449.3,2449.2,9.2147004]
[1749187598827,3.2078,2449.3,2449.2,9.2147004]
[1749187599230,4.02397,2449.3,2449.2,9.2147004]
[1749187599628,3.2078,2449.3,2449.2,9.2147004]
[1749187599826,3.2078,2449.3,2449.2,10.0309004]
[1749187600029,3.2078,2449.6,2449.2,9.2147004]
[1749187600323,4.02387,2449.6,2449.5,4.0747004]
[1749187601125,3.21392232,2449.9,2449.5,9.0747004]
[1749187601326,0.00612232,2449.9,2449.8,4.0747004]
[1749187601524,0.00612232,2449.9,2449.8,9.2157004]
[1749187601726,0.00612232,2449.9,2449.8,15.0317004]
[1749187601931,4.02358,2450.5,2449.8,14.2157004]
[1749187602129,3.2078,2450.5,2450.4,4.0747004]
[1749187602430,4.02357,2450.5,2450.4,5.141]
[1749187602930,0.81596,2450.0,2449.8,24.685]
[1749187603234,3.2078,2449.9,2449.8,24.685]
[1749187603626,3.2078,2449.9,2449.8,33.8997004]
[1749187604536,3.2078,2449.9,2449.8,34.7157004]
[1749187604833,0.81591,2450.1,2449.8,34.7157004]
[1749187605032,0.81591,2450.1,2449.8,31.9991]
[1749187605336,0.81591,2450.1,2450.0,4.0747004]
[1749187606034,0.8159,2450.1,2450.0,5.14]
[1749187606336,0.8159,2450.1,2450.0,9.2147004]
[1749187606635,3.2078,2450.2,2450.0,10.0306304]
[1749187606935,3.2078,2450.2,2450.1,5.4244004]
[1749187607136,3.2078,2450.2,2450.1,6.5752004]
[1749187608338,4.02367,2450.2,2450.1,6.5752004]
[1749187609339,4.02367,2450.2,2450.1,6.64653391]
[1749187610338,4.02367,2450.2,2450.1,6.5752004]
[1749187613941,3.2078,2450.2,2450.1,6.5752004]
[1749187614240,4.02367,2450.2,2450.1,6.5752004]
[1749187620753,2.04539232,2450.7,2450.1,6.5752004]
[1749187620754,3.2078,2450.5,2450.1,6.5752004]
[1749187621045,0.81584,2450.3,2450.1,3.31637]
[1749187621540,0.81584,2450.3,2450.2,4.0747004]
[1749187621740,0.81581,2450.4,2450.2,4.8905704]
[1749187621944,0.81581,2450.4,2450.3,2.4331]
[1749187622143,2.09255362,2450.4,2450.3,6.5078004]
[1749187622348,2.09255362,2450.4,2450.3,9.2947004]
[1749187622548,0.81587,2450.2,2450.1,1.1508]
[1749187622753,5.30041362,2450.2,2450.1,6.3708]
[1749187623449,5.30041362,2450.2,2450.1,5.22]
[1749187623844,0.81593,2450.0,2449.9,2.4331]
[1749187624044,0.81593,2450.0,2449.9,7.6531]
[1749187624250,0.81593,2450.0,2449.9,11.7278004]
[1749187625145,0.81593,2450.0,2449.9,5.4116004]
[1749187625350,0.81593,2450.0,2449.9,10.6316004]
[1749187625843,2.09353233,2450.0,2449.9,10.6316004]
[1749187626637,2.09353233,2450.0,2449.9,6.5569]
[1749187626840,2.09353233,2450.0,2449.9,10.6316004]
[1749187627048,2.09353233,2450.0,2449.8,25.8358]
[1749187627049,0.81597,2449.9,2449.8,24.685]
[1749187627246,4.02377,2449.9,2449.8,31.2606]
[1749187627436,4.02377,2449.9,2449.8,35.3353004]
[1749187628351,5.30253355,2449.9,2449.8,35.3353004]
[1749187628552,5.30253355,2449.9,2449.8,1.3556]
[1749187628751,0.816,2449.8,2449.7,0.00612232]
[1749187629055,2.09476355,2449.8,2449.7,0.00612232]
[1749187629441,6.27876355,2449.8,2449.0,25.50026]
[1749187629648,4.02393,2449.4,2449.3,4.0747004]
[1749187629849,5.30269355,2449.4,2449.3,4.0747004]
[1749187630652,5.30269355,2449.4,2449.3,9.2957004]
[1749187632349,0.8162,2449.2,2449.1,1.1006]
[1749187632550,3.31927355,2449.2,2448.7,1.0922]
[1749187632751,4.02413,2448.8,2448.7,10.3879004]
[1749187632957,1.27876355,2448.8,2448.7,6.3132]
[1749187633152,3.21392232,2449.4,2448.9,0.81628]
[1749187633346,2.09359891,2449.3,2449.2,4.0747004]
[1749187633553,2.09359891,2449.3,2449.2,9.2957004]
[1749187634152,2.09359891,2449.3,2449.2,5.221]
[1749187635467,1.27739891,2449.3,2449.2,9.2957004]
[1749187635758,3.21392232,2449.4,2449.2,9.2957004]
[1749187635954,3.21392232,2449.4,2449.3,5.3842004]
[1749187636159,5.30447228,2449.4,2449.3,6.4615004]
[1749187636861,4.48834228,2449.4,2449.3,6.4615004]
[1749187637159,3.21392232,2449.4,2449.3,6.4615004]
[1749187637453,4.03005232,2449.4,2449.3,6.4615004]
[1749187639369,3.21392232,2449.4,2449.3,6.4615004]
[1749187639658,0.00612232,2449.4,2449.3,6.4615004]
[1749187639863,3.2078,2449.7,2449.6,0.81607]
[1749187640158,3.2078,2449.7,2449.6,10.1127704]
[1749187640553,3.2078,2449.7,2449.6,9.2967004]
[1749187640855,4.02383,2449.7,2449.6,9.2967004]
[1749187641251,3.2078,2449.7,2449.6,10.3734004]
[1749187642753,4.02383,2449.7,2449.6,10.3734004]
[1749187643158,0.00612232,2449.9,2449.7,0.81602]
[1749187643365,0.82211232,2449.9,2449.8,5.3968004]
[1749187643559,2.09629179,2449.9,2449.8,5.3968004]
[1749187644259,1.28030179,2449.9,2449.8,6.2128004]
[1749187644566,0.00612232,2449.9,2449.8,5.3968004]
[1749187645862,0.00612232,2449.9,2449.8,6.2128004]
[1749187647358,0.00612232,2449.9,2449.8,9.4206004]
[1749187647862,4.02365,2450.3,2450.1,0.81588]
[1749187648062,3.2078,2450.7,2450.2,11.6268004]
[1749187648361,1.27538093,2450.6,2450.4,4.0747004]
[1749187648658,0.81565,2450.9,2450.7,0.8157]
[1749187648858,3.2078,2451.0,2450.8,10.4769004]
[1749187649066,0.00612232,2451.0,2450.8,10.4769004]
[1749187649267,0.82174232,2451.0,2450.8,7.5521]
[1749187649764,0.81564,2450.9,2450.8,7.5521]
[1749187650263,0.00612232,2451.0,2450.8,11.6268004]
[1749187650454,0.00612232,2451.0,2450.9,4.8903304]
[1749187650962,0.00612232,2451.0,2450.9,4.0747004]
[1749187651162,0.00612232,2451.0,2450.9,5.1934004]
[1749187652564,0.00612232,2451.0,2450.9,11.0090304]
[1749187653462,0.00612232,2451.0,2450.9,12.3982304]
[1749187655366,0.00612232,2451.0,2450.9,7.3982304]
[1749187655858,0.82172232,2451.0,2450.9,6.5826004]
[1749187656058,4.02952232,2451.0,2450.9,2.5079]
[1749187656258,4.02952232,2451.0,2450.9,7.6519]
[1749187656555,0.00612232,2451.0,2450.9,12.5422304]
[1749187656957,0.89305583,2451.0,2450.9,6.5826004]
[1749187657159,4.10085583,2451.0,2450.9,6.5826004]
[1749187657356,4.10085583,2451.0,2450.9,11.7256004]
[1749187657557,4.10085583,2451.0,2450.9,6.5826004]
[1749187657763,3.28525583,2451.0,2450.9,11.7256004]
[1749187658066,3.21392232,2451.0,2450.9,11.7256004]
[1749187658665,4.02952232,2451.0,2450.9,11.7256004]
[1749187659769,3.21392232,2451.0,2450.7,24.684]
[1749187660072,0.81567,2450.8,2450.7,24.684]
[1749187660369,0.81567,2450.8,2450.7,29.827]
[1749187662167,0.81567,2450.8,2450.7,24.684]
[1749187662760,0.81567,2450.8,2450.7,29.827]
[1749187663363,0.81567,2450.8,2450.7,24.684]
[1749187663563,0.81567,2450.8,2450.7,29.827]
[1749187664468,0.81567,2450.8,2450.7,24.684]
[1749187664670,0.81567,2450.8,2450.7,29.827]
[1749187666763,0.81567,2450.8,2450.7,28.7587004]
[1749187666965,0.81567,2450.8,2450.7,35.2738004]
[1749187667174,0.81566,2450.9,2450.7,35.2738004]
[1749187667380,0.81566,2450.9,2450.8,4.0747004]
[1749187667565,0.81566,2450.9,2450.8,5.4468004]
[1749187667766,0.81566,2450.9,2450.8,6.5151]
[1749187668072,0.81566,2450.9,2450.8,10.5898004]
[1749187668666,4.02954232,2451.0,2450.8,10.5898004]
[1749187669072,0.81563,2450.9,2450.8,10.5898004]
[1749187669468,4.02954232,2451.0,2450.8,10.5898004]
[1749187669667,3.21392232,2451.0,2450.9,4.0747004]
[1749187669975,4.02952232,2451.0,2450.9,6.4835004]
[1749187670365,3.21392232,2451.0,2450.9,7.2991304]
[1749187670572,3.21392232,2451.0,2450.9,6.4835004]
[1749187670872,3.21392232,2451.0,2450.9,7.2991304]
[1749187673567,0.00612232,2451.0,2450.9,7.2991304]
[1749187676276,0.81544,2451.5,2451.3,0.81548]
[1749187676481,0.81544,2451.5,2451.4,5.14]
[1749187676682,0.81553,2451.3,2451.0,3.31857]
[1749187676977,0.81553,2451.2,2451.1,5.14]
[1749187677279,0.81553,2451.2,2451.1,1.3122]
[1749187677473,2.09284595,2451.2,2451.1,5.3869004]
[1749187678378,1.27731595,2451.2,2451.1,6.2024704]
[1749187678574,2.09284595,2451.2,2451.1,5.3869004]
[1749187678779,2.09284595,2451.2,2451.1,10.5269004]
[1749187679474,1.27731595,2451.2,2451.1,5.14]
[1749187679677,2.09287595,2451.2,2451.1,5.14]
[1749187681875,2.09287595,2451.2,2451.0,1.98709]
[1749187682083,1.27731595,2451.1,2451.0,7.3646904]
[1749187682382,1.27731595,2451.1,2451.0,12.5046904]
[1749187682580,2.09288595,2451.1,2451.0,11.6891004]
[1749187683683,2.09288595,2451.1,2451.0,6.4429]
[1749187685177,2.09288595,2451.1,2450.9,1.1501]
[1749187685378,0.81563,2450.9,2450.7,25.8337]
[1749187685575,0.81563,2450.9,2450.8,9.2147004]
[1749187685782,2.08373541,2450.9,2450.8,9.2147004]
[1749187686081,3.2078,2451.0,2450.8,10.0303704]
[1749187686278,4.0234,2451.0,2450.8,11.3712704]
[1749187686980,4.0234,2451.0,2450.9,0.81563]
[1749187687283,5.29152714,2451.0,2450.9,1.3409]
[1749187688378,5.29152714,2451.0,2450.9,6.4809]
[1749187688578,5.29152714,2451.0,2450.9,7.29653]
[1749187688783,5.29152714,2451.0,2450.9,6.4809]
[1749187690183,4.47592714,2451.0,2450.9,11.3712304]
[1749187691085,5.29152714,2451.0,2450.9,11.3712304]
[1749187691280,5.29152714,2451.0,2450.9,5.4156004]